bitfinex/quotes_SOLUSD_20250204
["timestamp","ask_amount","ask_price","bid_price","bid_amount"]
[1738701200783,18.76720853,206.04,206.03,0.0001]
[1738701201174,4.8534,206.04,206.03,0.0001]
[1738701202312,4.97889,206.04,206.03,0.0001]
[1738701202478,18.76720853,206.04,206.03,0.0001]
[1738701203233,18.76720853,206.04,205.86,0.03]
[1738701203234,20.50196,206.0,205.86,0.03]
[1738701203412,0.37647,205.95,205.86,0.03]
[1738701204076,0.12549,205.95,205.86,0.03]
[1738701204306,20.0,206.01,205.87,38.28991257]
[1738701204501,20.0,206.01,205.86,0.03]
[1738701204703,13.91380853,206.0,205.86,0.03]
[1738701204907,20.0,206.01,205.91,38.28991257]
[1738701205233,12.1314,206.08,205.92,1.0]
[1738701205513,4.852,206.1,205.99,38.28991257]
[1738701206314,4.8513,206.13,206.03,38.28991257]
[1738701206527,20.0,206.1,205.99,38.28991257]
[1738701206826,1.19730946,206.18,205.97,38.28991257]
[1738701207116,80.8,206.22,206.06,38.28991257]
[1738701207117,4.8496,206.2,206.06,38.28991257]
[1738701207288,4.8487,206.24,206.12,38.28991257]
[1738701207482,4.8487,206.24,206.14,38.28991257]
[1738701207997,4.8487,206.24,206.16,38.28991257]
[1738701208314,13.78831853,206.18,206.03,50.63111257]
[1738701208613,0.12549,206.14,206.03,12.3412]
[1738701208791,13.78831853,206.14,206.03,12.3412]
[1738701208997,4.8513,206.13,206.03,12.3412]
[1738701209307,4.8513,206.13,206.02,7.0646]
[1738701209308,0.12549,206.1,206.02,7.0646]
[1738701209842,16.9795,206.13,205.99,38.31991257]
[1738701210045,20.0,206.1,205.99,38.31991257]
[1738701210328,13.91380853,206.09,205.99,0.03]
[1738701210837,4.8524,206.08,205.99,0.03]
[1738701211004,0.12549,206.07,205.99,0.03]
[1738701211204,4.8524,206.08,205.99,0.03]
[1738701211205,24.8522,206.1,206.01,38.28991257]
[1738701211636,16.9822,206.1,205.99,0.03]
[1738701211813,13.78831853,206.05,205.99,0.03]
[1738701212131,0.37647,206.01,205.99,0.03]
[1738701212307,0.37647,206.01,205.87,55.31471257]
[1738701212308,0.12549,205.98,205.87,12.1674]
[1738701212509,13.53733853,205.98,205.87,12.1674]
[1738701212715,20.0,206.07,205.87,50.45731257]
[1738701212916,4.8529,206.06,205.93,38.28991257]
[1738701213127,16.9852,206.06,205.91,38.28991257]
[1738701213425,20.0,205.99,205.87,50.45731257]
[1738701214326,13.91380853,205.98,205.87,12.1674]
[1738701214511,0.37647,205.94,205.86,0.03]
[1738701214830,20.0,205.95,205.86,0.03]
[1738701215137,4.8557,205.94,205.86,0.03]
[1738701215319,0.37647,205.93,205.86,0.03]
[1738701215637,16.9951,205.94,205.86,0.03]
[1738701215848,20.12549,205.9,205.86,0.03]
[1738701216072,0.12549,205.89,205.86,0.03]
[1738701216331,13.78831853,205.87,205.86,0.03]
[1738701216516,13.78831853,205.87,205.78,0.03]
[1738701216517,0.12549,205.83,205.78,0.03]
[1738701216714,13.78831853,205.83,205.78,0.03]
[1738701216918,0.12549,205.86,205.78,0.03]
[1738701217120,20.0,205.87,205.78,0.03]
[1738701217421,13.91380853,205.82,205.78,0.03]
[1738701217825,0.37647,205.78,205.67,38.28991257]
[1738701218048,0.12549,205.77,205.65,38.28991257]
[1738701218337,20.0,205.74,205.65,38.28991257]
[1738701218524,20.0,205.74,205.61,38.31991257]
[1738701218733,0.25098,205.74,205.63,38.28991257]
[1738701219139,20.0,205.75,205.65,38.28991257]
[1738701219310,1.99990453,205.82,205.61,38.31991257]
[1738701219648,33.91380853,205.79,205.61,38.31991257]
[1738701219817,33.91380853,205.79,205.61,0.03]
[1738701220156,20.0,205.68,205.61,0.03]
[1738701220309,0.25098,205.65,205.61,0.03]
[1738701220508,20.0,205.68,205.61,0.03]
[1738701220738,20.0,205.69,205.61,0.03]
[1738701221037,24.3541597,205.77,205.63,38.28991257]
[1738701221243,17.0091,205.77,205.63,38.28991257]
[1738701221409,20.37647,205.73,205.61,38.31991257]
[1738701221620,0.25098,205.68,205.61,0.03]
[1738701221942,20.0,205.65,205.61,0.03]
[1738701222240,18.20768517,205.77,205.62,38.28991257]
[1738701222418,17.0091,205.77,205.64,38.28991257]
[1738701222621,17.0091,205.77,205.61,4.8935]
[1738701222622,13.41581803,205.73,205.61,4.8935]
[1738701222817,13.41581803,205.73,205.65,38.28991257]
[1738701223015,13.41581803,205.73,205.69,15.49621762]
[1738701223224,13.41581803,205.73,205.69,38.28991257]
[1738701223411,18.77280853,205.8,205.69,38.28991257]
[1738701223613,4.98449,205.8,205.7,38.28991257]
[1738701224041,4.859,205.8,205.68,1.0]
[1738701224350,11.9110422,205.82,205.78,38.28991257]
[1738701224531,11.9110422,205.82,205.68,38.28991257]
[1738701224532,0.25098,205.81,205.68,38.28991257]
[1738701224871,20.0,205.78,205.68,38.28991257]
[1738701225048,20.0,205.78,205.66,38.28991257]
[1738701225218,4.8597,205.77,205.66,43.15211257]
[1738701225833,20.0,205.78,205.7,38.28991257]
[1738701226158,4.8589,205.81,205.74,38.28991257]
[1738701226314,11.9110422,205.82,205.74,38.28991257]
[1738701226646,11.9110422,205.82,205.76,38.28991257]
[1738701227251,11.9110422,205.82,205.74,1.0]
[1738701227252,11.9110422,205.82,205.8,38.28991257]
[1738701227737,2.42750781,205.97,205.8,38.28991257]
[1738701227738,1.21032214,206.01,205.81,1.37647]
[1738701227950,41.68864773,206.02,205.86,38.28991257]
[1738701228118,41.68864773,206.02,205.87,13.78831853]
[1738701228119,19.434588,206.0,205.87,13.78831853]
[1738701228316,41.68864773,206.02,205.91,13.78831853]
[1738701228669,41.68864773,206.02,206.0,38.28991257]
[1738701228872,0.063,206.08,205.92,38.28991257]
[1738701228873,4.8527,206.07,205.92,38.28991257]
[1738701229165,4.8527,206.07,205.96,38.28991257]
[1738701229465,0.063,206.08,206.02,38.28991257]
[1738701229632,0.063,206.08,205.94,38.28991257]
[1738701229633,4.9155,206.08,205.94,38.28991257]
[1738701230033,4.9155,206.08,205.91,4.8564]
[1738701230034,4.9155,206.08,205.96,38.28991257]
[1738701230373,0.063,206.08,206.02,38.28991257]
[1738701230574,0.063,206.08,206.06,39.28991257]
[1738701230933,0.063,206.08,206.07,0.97864625]
[1738701231234,0.063,206.08,206.07,5.70585625]
[1738701231449,0.063,206.08,206.02,38.28991257]
[1738701231636,0.063,206.08,205.93,1.0]
[1738701231637,0.063,206.08,205.98,43.14471257]
[1738701231842,20.0,206.05,205.94,38.28991257]
[1738701232065,20.0,206.05,205.92,38.28991257]
[1738701232435,20.0,206.01,205.9,38.28991257]
[1738701232630,13.66282853,206.0,205.9,38.28991257]
[1738701232858,20.0,206.01,205.9,38.28991257]
[1738701233164,13.66282853,206.03,205.9,38.28991257]
[1738701233342,0.25098,206.04,205.9,38.28991257]
[1738701233343,13.66282853,206.01,205.9,38.28991257]
[1738701233542,13.66282853,206.01,205.95,7.33789754]
[1738701233748,13.66282853,205.97,205.95,7.33789754]
[1738701234553,0.25098,206.0,205.95,7.33789754]
[1738701234756,4.8538,206.02,205.95,7.33789754]
[1738701235063,33.91380853,205.96,205.95,9.754e-05]
[1738701235234,20.25098,205.92,205.91,9.263e-05]
[1738701235435,33.66282853,205.92,205.91,9.263e-05]
[1738701235645,20.0,205.92,205.91,9.263e-05]
[1738701235849,33.66282853,205.92,205.91,9.263e-05]
[1738701236039,33.91380853,205.92,205.91,9.263e-05]
[1738701236242,33.91380853,205.92,205.77,6.54077457]
[1738701236243,0.50196,205.87,205.77,6.54077457]
[1738701236469,18.99500453,205.94,205.77,6.54077457]
[1738701236470,13.66282853,205.82,205.77,6.54077457]
[1738701237061,13.66282853,205.8,205.73,22.99927866]
[1738701237236,20.0,205.81,205.73,22.99927866]
[1738701238065,0.25098,205.83,205.73,22.99927866]
[1738701238245,16.9976,205.91,205.75,38.28991257]
[1738701238561,4.8564,205.91,205.81,38.28991257]
[1738701238945,16.9976,205.91,205.75,38.28991257]
[1738701239138,12.1412,205.91,205.73,61.28919123]
[1738701239339,33.91380853,205.87,205.73,22.99927866]
[1738701239562,33.91380853,205.87,205.73,61.28919123]
[1738701239942,33.91380853,205.87,205.73,22.99927866]
[1738701240349,33.91380853,205.87,205.74,38.28991257]
[1738701240546,33.91380853,205.87,205.76,38.28991257]
[1738701240866,33.91380853,205.87,205.73,22.99927866]
[1738701241067,20.0,205.77,205.73,14.36740909]
[1738701241236,0.50196,205.74,205.73,14.36740909]
[1738701241441,13.91380853,205.74,205.73,14.36740909]
[1738701241636,4.8602,205.75,205.73,14.36740909]
[1738701241854,1.22873922,205.86,205.73,14.36740909]
[1738701242044,17.9985,205.9,205.73,14.36740909]
[1738701242045,0.99990453,205.83,205.73,14.36740909]
[1738701242252,13.66282853,205.74,205.73,14.36740909]
[1738701242658,0.99990453,205.88,205.73,14.36740909]
[1738701242964,1.0,205.86,205.73,14.36740909]
[1738701243140,13.91380853,205.85,205.73,14.36740909]
[1738701243342,17.0034,205.84,205.73,14.36740909]
[1738701243541,80.8,205.92,205.79,38.28991257]
[1738701243542,16.9969,205.92,205.79,38.28991257]
[1738701243746,8.628368,205.94,205.79,38.28991257]
[1738701243979,8.628368,205.94,205.74,0.72881932]
[1738701243980,8.628368,205.94,205.73,19.22800909]
[1738701244156,8.628368,205.94,205.77,38.28991257]
[1738701244357,8.628368,205.94,205.75,38.28991257]
[1738701244570,13.91380853,205.93,205.73,52.65732166]
[1738701244762,20.0,205.86,205.75,38.28991257]
[1738701245080,16.9969,205.92,205.79,38.28991257]
[1738701245254,16.9969,205.92,205.73,0.03]
[1738701245455,20.0,205.84,205.73,0.03]
[1738701245783,20.0,205.79,205.73,0.03]
[1738701246157,13.41184853,205.82,205.73,0.03]
[1738701246358,16.9969,205.92,205.73,0.03]
[1738701246570,20.0,205.89,205.76,38.28991257]
[1738701246769,20.0,205.89,205.74,38.28991257]
[1738701246954,20.0,205.89,205.76,38.28991257]
[1738701247155,20.0,205.85,205.74,38.28991257]
[1738701247388,24.8581,205.84,205.74,38.28991257]
[1738701247578,24.8581,205.84,205.76,38.28991257]
[1738701247974,16.9935,205.96,205.83,38.28991257]
[1738701248173,4.8553,205.96,205.87,38.28991257]
[1738701248488,4.8541,206.01,205.89,38.28991257]
[1738701248683,4.8537,206.03,205.93,38.28991257]
[1738701248986,4.8537,206.03,205.91,38.28991257]
[1738701249190,4.8537,206.03,205.83,0.72839603]
[1738701249359,0.12549,205.94,205.81,38.28991257]
[1738701249564,0.12549,205.94,205.79,38.28991257]
[1738701249881,20.0,205.91,205.79,38.28991257]
[1738701250183,20.0,205.91,205.81,38.28991257]
[1738701250357,16.9919,205.98,205.83,38.28991257]
[1738701250556,33.66282853,205.94,205.81,38.28991257]
[1738701250776,16.9919,205.98,205.78,5.58820944]
[1738701250965,4.8548,205.98,205.91,38.28991257]
[1738701251298,4.8548,205.98,205.85,38.28991257]
[1738701251498,4.8548,205.98,205.87,38.28991257]
[1738701251674,4.8538,206.02,205.92,38.28991257]
[1738701251871,0.063,206.05,205.96,38.28991257]
[1738701252075,0.063,206.05,205.98,38.28991257]
[1738701252588,0.063,206.05,205.92,38.28991257]
[1738701252589,0.063,206.05,206.01,38.28991257]
[1738701253088,0.063,206.05,205.92,38.28991257]
[1738701253089,0.063,206.05,206.03,38.28991257]
[1738701253389,0.063,206.08,206.04,0.7278234]
[1738701253689,0.063,206.14,206.08,0.50196]
[1738701253879,0.063,206.14,206.13,38.28991257]
[1738701254261,0.063,206.14,206.04,38.28991257]
[1738701254467,0.063,206.14,206.0,4.8543]
[1738701254468,0.063,206.14,206.08,38.28991257]
[1738701254666,0.063,206.14,206.1,38.28991257]
[1738701255172,0.063,206.14,206.12,38.28991257]
[1738701255365,0.063,206.14,206.13,4.8513]
[1738701255687,0.063,206.14,206.13,0.72755725]
[1738701255995,0.063,206.26,206.13,0.72755725]
[1738701255996,0.063,206.26,206.2,0.12549]
[1738701256191,0.063,206.26,206.25,38.28991257]
[1738701256499,0.063,206.26,206.25,53.93073114]
[1738701256797,0.063,206.29,206.28,20.50196]
[1738701256969,0.0001,206.29,206.28,113.22044457]
[1738701257290,0.063,206.38,206.33,13.91380853]
[1738701257494,0.063,206.38,206.32,38.28991257]
[1738701257675,0.063,206.38,206.36,38.28991257]
[1738701258365,0.063,206.44,206.36,38.28991257]
[1738701258366,0.063,206.44,206.37,1.22860634]
[1738701258566,0.063,206.44,206.43,38.28991257]
[1738701258967,0.063,206.44,206.43,52.2037211]
[1738701259170,0.063,206.44,206.43,39.2671501]
[1738701259396,0.063,206.44,206.43,92.21999011]
[1738701259581,13.91722662,206.55,206.47,0.25098]
[1738701259798,13.91722662,206.55,206.54,38.28991257]
[1738701259970,0.063,206.65,206.54,38.28991257]
[1738701260165,0.063,206.65,206.56,38.28991257]
[1738701260579,20.0,206.64,206.52,38.28991257]
[1738701260787,0.25098,206.62,206.5,38.28991257]
[1738701260990,0.25098,206.62,206.46,38.28991257]
[1738701261166,13.66282853,206.58,206.46,38.28991257]
[1738701261369,13.66282853,206.56,206.44,38.28991257]
[1738701261577,4.8414,206.55,206.46,38.28991257]
[1738701261780,4.8395,206.63,206.52,38.28991257]
[1738701262203,4.8395,206.63,206.54,38.28991257]
[1738701262432,24.8395,206.63,206.54,38.28991257]
[1738701262782,24.8395,206.63,206.5,38.28991257]
[1738701262981,20.0,206.61,206.46,38.28991257]
[1738701263285,4.8395,206.63,206.5,38.28991257]
[1738701263492,4.8395,206.63,206.54,38.28991257]
[1738701263790,0.063,206.65,206.58,38.28991257]
[1738701264096,0.063,206.65,206.48,0.12549]
[1738701264097,0.25098,206.64,206.54,38.28991257]
[1738701264303,13.66282853,206.64,206.52,38.28991257]
[1738701264594,13.66282853,206.64,206.48,38.28991257]
[1738701264595,13.66282853,206.6,206.48,38.28991257]
[1738701264778,13.66282853,206.58,206.44,38.28991257]
[1738701264977,0.25098,206.54,206.41,38.28991257]
[1738701265173,16.9433,206.57,206.43,38.28991257]
[1738701265383,16.9433,206.57,206.46,38.28991257]
[1738701265603,4.8409,206.57,206.46,38.28991257]
[1738701265802,4.8409,206.57,206.48,38.28991257]
[1738701265989,0.063,206.65,206.46,0.25098]
[1738701266192,4.8393,206.64,206.56,38.28991257]
[1738701266807,4.8393,206.64,206.49,0.8516381]
[1738701266808,0.063,206.65,206.58,38.28991257]
[1738701267009,0.063,206.65,206.62,38.28991257]
[1738701267306,0.063,206.65,206.64,38.28991257]
[1738701267507,0.063,206.65,206.58,38.28991257]
[1738701267710,0.063,206.65,206.63,38.28991257]
[1738701268706,0.063,206.65,206.55,38.28991257]
[1738701268909,0.063,206.65,206.47,2.72575589]
[1738701268910,0.063,206.65,206.61,38.28991257]
[1738701269103,0.063,206.65,206.64,38.28991257]
[1738701269303,0.063,206.65,206.6,38.28991257]
[1738701269503,0.063,206.65,206.57,38.28991257]
[1738701269894,0.063,206.65,206.53,38.28991257]
[1738701270188,0.063,206.65,206.61,38.28991257]
[1738701270390,0.063,206.65,206.55,0.12549]
[1738701270619,0.063,206.65,206.63,38.28991257]
[1738701270911,0.063,206.65,206.61,38.28991257]
[1738701271114,0.063,206.64,206.56,38.28991257]
[1738701271313,0.063,206.64,206.55,38.28991257]
[1738701271513,0.063,206.64,206.53,38.28991257]
[1738701271721,33.97680853,206.64,206.49,38.28991257]
[1738701272011,33.97680853,206.64,206.45,0.7263224]
[1738701272208,33.97680853,206.64,206.47,38.28991257]
[1738701272418,33.97680853,206.64,206.45,38.28991257]
[1738701272619,0.50196,206.58,206.45,38.28991257]
[1738701272792,0.25098,206.53,206.37,1.0]
[1738701273113,16.9474,206.52,206.39,38.28991257]
[1738701273318,13.66282853,206.51,206.39,38.28991257]
[1738701273692,16.9474,206.52,206.39,38.28991257]
[1738701273898,4.8421,206.52,206.43,38.28991257]
[1738701274211,4.8412,206.56,206.47,38.28991257]
[1738701274721,13.66282853,206.52,206.4,38.28991257]
[1738701275026,16.9515,206.47,206.34,38.28991257]
[1738701275207,16.9515,206.47,206.32,38.28991257]
[1738701275208,13.91380853,206.46,206.32,38.28991257]
[1738701275399,20.0,206.43,206.32,38.28991257]
[1738701275600,20.0,206.39,206.28,38.28991257]
[1738701275808,13.41184853,206.38,206.26,38.28991257]
[1738701276020,20.0,206.35,206.26,38.28991257]
[1738701276223,20.0,206.35,206.24,38.28991257]
[1738701276414,20.0,206.35,206.19,0.72706045]
[1738701276618,0.25098,206.3,206.2,38.28991257]
[1738701276822,20.0,206.26,206.13,38.28991257]
[1738701277020,4.8484,206.25,206.13,38.28991257]
[1738701277197,4.8484,206.25,206.12,0.03]
[1738701277198,20.0,206.21,206.12,0.03]
[1738701277707,16.9696,206.25,206.12,38.31991257]
[1738701277922,4.8475,206.29,206.16,38.28991257]
[1738701278129,0.99990453,206.37,206.2,38.28991257]
[1738701278130,24.2284,206.37,206.2,38.28991257]
[1738701278430,0.37647,206.27,206.12,38.31991257]
[1738701278731,0.37647,206.27,206.12,0.03]
[1738701278732,20.0,206.23,206.12,0.03]
[1738701279110,24.2376,206.3,206.12,38.31991257]
[1738701279416,12.1165,206.33,206.16,38.28991257]
[1738701279726,20.0,206.26,206.12,0.03]
[1738701279902,0.25098,206.25,206.12,0.03]
[1738701280102,20.0,206.22,206.12,0.03]
[1738701280305,0.25098,206.21,206.12,0.03]
[1738701280499,13.66282853,206.17,206.12,0.03]
[1738701280720,20.0,206.18,206.12,0.03]
[1738701280931,0.99990453,206.25,206.12,0.03]
[1738701280932,38.51412853,206.13,206.12,0.03]
[1738701281230,38.51412853,206.13,206.0,38.28991257]
[1738701281231,24.8513,206.13,206.0,38.28991257]
[1738701281399,36.9795,206.13,206.0,38.28991257]
[1738701281602,13.66282853,206.12,205.98,38.28991257]
[1738701281904,13.66282853,206.12,205.95,4.8553]
[1738701281905,20.0,206.09,205.96,38.28991257]
[1738701282235,13.66282853,206.08,205.96,38.28991257]
[1738701282545,20.0,206.09,205.92,38.28991257]
[1738701282840,16.9795,206.13,206.0,38.28991257]
[1738701282841,20.0,206.1,206.0,38.28991257]
[1738701283005,4.8522,206.09,205.98,38.28991257]
[1738701283201,33.91380853,206.08,205.92,38.28991257]
[1738701283406,33.91380853,206.08,205.9,38.28991257]
[1738701283626,33.91380853,206.08,206.0,0.03]
[1738701283936,4.8522,206.09,206.0,0.03]
[1738701284140,4.8515,206.12,206.01,38.28991257]
[1738701284349,4.8515,206.12,206.03,38.28991257]
[1738701284531,1.23676852,206.21,206.0,0.03]
[1738701284532,4.8496,206.2,206.07,38.28991257]
[1738701285027,12.1241,206.2,206.05,38.28991257]
[1738701285235,12.1241,206.2,206.01,0.12549]
[1738701285236,33.66282853,206.16,206.01,38.28991257]
[1738701285543,20.0,206.16,206.04,38.28991257]
[1738701285704,13.41184853,206.18,206.04,38.28991257]
[1738701285903,20.0,206.15,206.04,38.28991257]
[1738701286618,20.0,206.13,206.0,38.31991257]
[1738701287023,20.0,206.09,206.0,0.03]
[1738701287219,13.66282853,206.08,206.0,0.03]
[1738701287439,20.0,206.05,206.0,0.03]
[1738701287806,17.23128,206.12,206.0,0.03]
[1738701288012,16.9803,206.12,206.0,0.03]
[1738701288229,4.8515,206.12,206.03,38.28991257]
[1738701288633,16.9741,206.2,206.05,38.28991257]
[1738701289024,12.1245,206.2,206.07,38.28991257]
[1738701289223,20.0,206.16,206.05,38.28991257]
[1738701289426,12.1245,206.2,206.05,38.28991257]
[1738701289744,12.1245,206.2,206.07,38.28991257]
[1738701289943,4.8491,206.22,206.11,38.28991257]
[1738701290314,19.40996,206.31,206.05,38.54089257]
[1738701290315,4.8482,206.26,206.12,0.72750906]
[1738701290521,4.8482,206.26,206.16,38.28991257]
[1738701291017,12.1206,206.26,206.14,38.28991257]
[1738701291222,4.8477,206.28,206.16,38.28991257]
[1738701291529,4.8477,206.28,206.15,0.72739028]
[1738701291530,16.9671,206.28,206.18,38.28991257]
[1738701291727,16.9671,206.28,206.16,38.28991257]
[1738701291728,13.66282853,206.27,206.16,38.28991257]
[1738701291935,13.66282853,206.27,206.09,12.1303]
[1738701291936,20.0,206.24,206.14,38.28991257]
[1738701292127,20.0,206.24,180.02,0.12335554]
[1738701292128,0.25098,206.14,206.01,38.28991257]
[1738701292342,20.0,206.15,206.01,38.28991257]
[1738701292645,0.12549,206.18,206.01,38.28991257]
[1738701292646,20.0,206.14,206.01,38.28991257]
[1738701292822,1.23495917,206.24,206.03,38.28991257]
[1738701293023,0.99990453,206.27,206.07,38.28991257]
[1738701293227,33.91380853,206.21,206.05,38.28991257]
[1738701293431,33.91380853,206.21,206.03,38.28991257]
[1738701293736,1.99990453,206.23,206.01,38.28991257]
[1738701293737,0.25098,206.15,206.01,38.28991257]
[1738701293937,20.0,206.16,206.05,38.28991257]
[1738701294154,20.0,206.16,206.08,38.28991257]
[1738701294335,7.0,206.25,206.08,38.28991257]
[1738701294654,33.66282853,206.2,206.05,38.28991257]
[1738701295532,16.9795,206.13,206.01,0.03]
[1738701295731,20.0,206.1,206.01,0.03]
[1738701296050,4.8513,206.13,206.05,38.28991257]
[1738701296557,4.8513,206.13,206.01,38.31991257]
[1738701296746,20.0,206.09,206.01,0.03]
[1738701296952,20.0,206.05,206.01,0.03]
[1738701297332,4.8534,206.04,206.01,0.03]
[1738701298023,20.0,206.03,206.01,0.03]
[1738701298845,4.8534,206.04,206.01,0.03]
[1738701299235,12.1304,206.1,206.01,0.03]
[1738701299546,33.66282853,206.06,206.01,0.03]
[1738701299844,20.0,206.06,206.01,0.03]
[1738701300145,13.91380853,206.09,206.01,0.03]
[1738701300336,20.0,206.02,206.01,0.03]
[1738701300543,20.0,206.02,206.0,0.0001]
[1738701300728,20.0,205.94,205.83,38.28991257]
[1738701300931,20.0,205.94,205.81,38.28991257]
[1738701301324,20.0,205.95,205.83,43.14811257]
[1738701301534,20.0,205.95,205.81,38.28991257]
[1738701301825,20.0,205.95,205.79,0.03]
[1738701301826,20.0,205.91,205.79,0.03]
[1738701302030,12.1376,205.98,205.84,38.28991257]
[1738701302236,12.1376,205.98,205.79,4.8893]
[1738701302237,13.66282853,205.94,205.82,38.28991257]
[1738701302542,20.0,205.95,205.84,38.28991257]
[1738701302927,20.0,205.95,205.79,0.03]
[1738701302928,20.0,205.91,205.79,0.03]
[1738701303426,13.66282853,205.89,205.79,0.03]
[1738701303831,4.8567,205.9,205.8,38.28991257]
[1738701304159,4.8555,205.95,205.85,38.28991257]
[1738701304344,20.0,205.92,205.79,38.31991257]
[1738701304545,20.0,205.92,205.79,0.03]
[1738701304854,0.12549,205.9,205.79,0.03]
[1738701305065,20.0,205.86,205.79,0.03]
[1738701305260,4.8588,205.81,205.79,0.03]
[1738701305439,20.0,205.8,205.79,0.03]
[1738701306045,12.1438,205.87,205.79,0.03]
[1738701306332,4.8571,205.88,205.79,0.03]
[1738701306650,20.0,205.87,205.79,0.03]
[1738701307039,20.0,205.8,205.79,0.03]
[1738701307236,4.8571,205.88,205.79,0.03]
[1738701307459,33.66282853,205.85,205.79,0.03]
[1738701307851,0.25098,205.84,205.79,0.03]
[1738701308246,0.12549,205.79,205.73,0.03]
[1738701308553,20.0,205.8,205.73,0.03]
[1738701308740,0.25098,205.72,205.68,0.03]
[1738701309079,33.66282853,205.69,205.68,0.03]
[1738701309365,20.0,205.69,205.68,0.03]
[1738701309565,4.8616,205.69,205.68,0.03]
[1738701309737,4.8602,205.75,205.68,0.03]
[1738701310045,4.8593,205.79,205.68,0.03]
[1738701310251,20.0,205.77,205.68,0.03]
[1738701310447,4.8593,205.79,205.68,0.03]
[1738701310637,17.0076,205.79,205.68,0.03]
[1738701310960,20.0,205.76,205.68,0.03]
[1738701311334,80.8,205.88,205.68,38.31991257]
[1738701311660,4.8574,205.87,205.77,38.28991257]
[1738701311867,4.8574,205.87,205.79,38.28991257]
[1738701312033,80.8,205.98,205.69,18.0158]
[1738701312034,12.1365,205.99,205.83,38.28991257]
[1738701312234,19.437586,205.97,205.79,38.28991257]
[1738701312480,19.437586,205.97,205.85,38.28991257]
[1738701312760,5.69147393,206.03,205.85,38.28991257]
[1738701312761,12.8935,206.09,205.94,38.28991257]
[1738701312934,20.0,206.04,205.94,38.28991257]
[1738701313135,20.0,206.04,205.92,38.28991257]
[1738701313366,24.280245,206.08,205.94,38.28991257]
[1738701313663,24.280245,206.08,205.88,0.12549]
[1738701313664,13.91380853,206.07,205.88,38.28991257]
[1738701313882,0.25098,205.99,205.85,38.28991257]
[1738701314183,60.678794,206.08,205.87,38.28991257]
[1738701314344,13.91380853,206.01,205.83,38.28991257]
[1738701314543,13.91380853,206.01,205.81,38.28991257]
[1738701314752,20.0,205.94,205.81,38.28991257]
[1738701315053,13.89340453,206.09,205.89,38.28991257]
[1738701315282,85.941194,206.08,205.85,38.28991257]
[1738701315489,13.53733853,205.97,205.81,38.28991257]
[1738701315654,0.12549,205.96,205.79,38.28991257]
[1738701315858,16.9911,205.99,205.83,38.28991257]
[1738701316173,17.99100453,205.99,205.79,38.28991257]
[1738701316348,17.99100453,205.99,205.77,0.7284446]
[1738701316349,13.66282853,205.91,205.77,38.28991257]
[1738701316550,13.66282853,205.91,205.68,26.2581]
[1738701316551,20.0,205.88,205.75,38.28991257]
[1738701317443,20.0,205.88,205.75,350.28991257]
[1738701317648,13.66282853,205.91,205.75,350.28991257]
[1738701317649,4.8557,205.94,205.79,38.28991257]
[1738701317882,16.9954,205.94,205.85,0.03]
[1738701318286,4.8557,205.94,205.85,38.31991257]
[1738701318444,4.8534,206.04,205.9,38.28991257]
[1738701318650,4.8534,206.04,205.94,38.28991257]
[1738701318858,19.432794,206.08,205.9,0.12549]
[1738701318859,4.8524,206.08,205.96,38.28991257]
[1738701319091,16.9836,206.08,205.94,38.28991257]
[1738701319264,13.66282853,206.07,205.9,38.28991257]
[1738701319471,13.41184853,206.07,205.94,38.28991257]
[1738701319689,4.8529,206.06,205.96,38.28991257]
[1738701319898,0.063,206.1,205.98,38.28991257]
[1738701320066,4.8526,206.08,206.0,38.28991257]
[1738701320259,0.063,206.1,206.07,38.28991257]
[1738701320464,0.063,206.1,206.09,38.28991257]
[1738701320683,0.063,206.1,206.09,38.41540257]
[1738701320884,0.063,206.23,206.12,20.0]
[1738701321089,0.063,206.23,206.22,38.28991257]